Cogmind - Beta 16 @@@ ROGUE MODE // 2025.11.27 @ 23:49:05 Player: Ayera Result: Destroyed by G-47 Trooper with Particle Gun Performance ------------- Evolutions (0) 0 Regions Visited (1) 200 Robots Destroyed (9) 45 Value Destroyed (233) 233 Prototype IDs (0) 0 Alien Tech Used (0) 0 Bonus (0) 0 TOTAL SCORE: 478 Bonus ------- None Cogmind --------- Core Integrity 0/250 Matter 300/300 Energy 71/100 System Corruption 0% Temperature Warm (177) Movement Core (100) Ox1 Location -10/Materials Parts ------- > --- POWER (1) -------- (None) > --- PROPULSION (2) --- (None) > --- UTILITY (2) ------ Small Storage Unit > --- WEAPON (2) ------- (None) > --- INVENTORY (8) ---- Ion Engine Tractor Beam Peak State ------------ > --- POWER ------------ Light Nuclear Core > --- PROPULSION ------- Improved Hover Unit Improved Hover Unit > --- UTILITY ---------- Small Storage Unit Backup Plating I > --- WEAPON ----------- EM Pulse Gun Assault Rifle > --- INVENTORY -------- Ion Engine Tractor Beam EM Pulse Gun [Rating: 11] Favorites ----------- Power Ion Engine Engine Ion Engine Power Core Light Nuclear Core Propulsion Light Treads Treads Light Treads Hover Unit Improved Hover Unit Utility Small Storage Unit Storage Small Storage Unit Protection Backup Plating I Weapon EM Pulse Gun Energy Gun EM Pulse Gun Ballistic Gun Assault Rifle Build | -11 -10 ------- Run | Yrd Mat Slots Evolved . | . . Power . | . . Propulsion . | . . Utility . | . . Weapon . | . . Parts Attached 10 | 6 4 Power 2 | 1 1 Engine 1 | 1 . Core 1 | . 1 Reactor . | . . Propulsion 4 | 2 2 Treads 2 | 2 . Leg . | . . Wheel . | . . Hover 2 | . 2 Flight . | . . Utility 1 | 1 . Device . | . . Storage 1 | 1 . Processor . | . . Hackware . | . . Protection . | . . Artifact . | . . Weapon 3 | 2 1 Energy Gun 2 | 1 1 Energy Cannon . | . . Ballistic Gun 1 | 1 . Ballistic Cannon . | . . Launcher . | . . Special Weapon . | . . Impact Weapon . | . . Slashing Weapon . | . . Piercing Weapon . | . . Special Melee Weapon . | . . Unidentified Prototypes . | . . Parts Lost 7 | . 7 Power 1 | . 1 Propulsion 2 | . 2 Utility 1 | . 1 Weapon 3 | . 3 Highest Loss Streak 7 | . 7 To Critical Strikes . | . . Average Backups . | . 1 Power . | . . Propulsion . | . . Utility . | . . Weapon . | . . Tool/Special . | . . Unused Backups 2 | . 2 Power . | . . Propulsion 1 | . 1 Utility 1 | . 1 Weapon . | . . Tool/Special . | . . Average Slot Usage (%) 96 | . 96 Engine 11 | . 11 Core 2 | . 2 Treads 20 | . 20 Hover 7 | . 7 Storage 14 | . 14 Protection 12 | . 12 Energy Gun 13 | . 13 Ballistic Gun 13 | . 13 Peak Build Rating 11 | 6 11 Average Rating 6 | 4 7 On Entrance 3 | . 6 Avg Prop Armor Cover (%) . | . . Naked Turns . | . . Heaviest Build 15 | 14 15 Greatest Support 40 | 40 40 Greatest Overweight (x) 1 | . 1 Average Overweight (x) . | . . Largest Inventory Capacity 8 | 8 8 Average Capacity 7 | 6 8 Most Carried 4 | 2 4 Average Carried . | . 1 Final Capacity 8 | 8 8 Final Carried 2 | . 2 Class Distribution -------------------- 100% | Mutant Dominant Class ---------------- Mutant | -10/Materials Resources | -11 -10 ----------- Run | Yrd Mat Matter Collected 368 | 242 126 Remotely . | . . Salvage Created 389 | . 389 Parts 24 | . 24 Haulers Intercepted . | . . Recyclers Shooed . | . . Parts Field Recycled . | . . Retrieved Matter . | . . Parts Self-Destructed . | . . Prevented . | . . Parts Restored . | . . Kills | -11 -10 ------- Run | Yrd Mat Combat Hostiles Destroyed 5 | . 5 Guns 5 | . 5 Classes Destroyed 5 | . 5 Worker 1 | . 1 Tunneler 1 | . 1 Recycler 1 | . 1 Watcher 1 | . 1 Grunt 5 | . 5 Best Kill Streak 3 | . 3 Combat Bots Only 2 | . 2 Max Kills in Single Turn 1 | . 1 Gunslinging . | . . Exploded . | . . Melee . | . . Uniques/NPCs Destroyed . | . . Combat | -11 -10 -------- Run | Yrd Mat Hostile Shots Fired 68 | . 68 Missed 15 | . 15 Hits 53 | . 53 Projectile 53 | . 53 Critical Strikes 1 | . 1 Damage Taken 804 | . 804 Core 250 | . 250 Absorbed by Shields . | . . Core Remaining (%) 100 | 100 . Volleys Fired 34 | . 34 Largest 2 | . 2 Hottest 60 | . 60 Shots Fired 60 | . 60 Gun 60 | . 60 Cannon . | . . Launcher . | . . Special . | . . Kinetic 30 | . 30 Thermal . | . . Explosive . | . . Electromagnetic 30 | . 30 Robot Hit Streak 9 | . 9 Robot Miss Streak 3 | . 3 Penetration Max . | . . Secondary Targets 1 | . 1 Max Gunslinging Chain 1 | . 1 Shots Hit Robots 36 | . 36 Core Hits 16 | . 16 Critical Kills . | . . Critical Parts Destroyed . | . . Critical Strikes . | . . Melee Attacks . | . . Impact . | . . Slashing . | . . Piercing . | . . Sneak Attacks . | . . Combat Hostiles . | . . Follow-up Attacks . | . . Damage Inflicted 650 | . 650 Guns 497 | . 497 Cannons . | . . Explosions 153 | . 153 Melee . | . . Ramming . | . . Kinetic 197 | . 197 Thermal 153 | . 153 Explosive . | . . Electromagnetic 300 | . 300 Impact . | . . Slashing . | . . Piercing . | . . Highest Corruption . | . . Average Corruption . | . . Corruption Purged . | . . Corruption Blocked . | . . Overload Shots . | . . Overflow Damage 3 | . 3 Projectiles . | . . Explosions 3 | . 3 Melee . | . . Knockbacks . | . . Impact . | . . Kinetic . | . . Secondary . | . . Self-Inflicted Damage 157 | . 157 Shots 2 | . 2 Rammed . | . . Targets Rammed . | . . Kicked . | . . Crushed . | . . Highest Temperature 171 | . 171 Average Temperature 61 | . 61 Received Heat Transfer 390 | . 390 Siege Activations . | . . Martial Activations . | . . Shielding Activations . | . . Robots Disrupted . | . . Combat Hostiles . | . . Robots Corrupted . | . . Combat Hostiles . | . . Parts Fried 1 | . 1 Impact Corruptions . | . . Robots Melted . | . . Combat Hostiles . | . . Parts Melted . | . . Heat Transferred 100 | . 100 Parts Sabotaged . | . . Parts Stolen . | . . Parts Stripped . | . . Power Chain Reactions . | . . Alert | -11 -10 ------- Run | Yrd Mat Maximum Alert Level . | . . Low Security (%) 100 | 100 100 Level 1 . | . . Level 2 . | . . Level 3 . | . . Level 4 . | . . Level 5 . | . . High Security . | . . Max Security . | . . Peak Influence 166 | . 166 Initial . | . . Average 52 | . 69 Influence Increases 338 | . 338 Destroy 0b10 Robot/C 100 | . 100 Destroy 0b10 Robot/NC 20 | . 20 Destroy Leader 22 | . 22 Successful Hack 6 | . 6 Disable Machine 30 | . 30 Destroy Structure 40 | . 40 Lose Combat Pursuer 120 | . 120 Influence Decreases 200 | . 200 Time Decay 130 | . 130 Lost Part 70 | . 70 Squads Dispatched 2 | . 2 Investigation 2 | . 2 Extermination . | . . Reinforcement . | . . Assault . | . . Garrison . | . . Intercept . | . . Searches Triggered . | . . Construction Impeded . | . . Haulers Reinforced . | . . Active Scanning Responses . | . . Cargo Convoy Interrupts . | . . Stealth | -11 -10 --------- Run | Yrd Mat Distress Signals 3 | . 3 Communications Jammed . | . . Distress Signals . | . . Times Spotted 17 | . 17 Peak Tracking Total 9 | . 9 Tactical Retreats 4 | . 4 Traps | -11 -10 ------- Run | Yrd Mat Traps Triggered 2 | . 2 Indirectly . | . . Trap Hack Attempts . | . . Triggered . | . . Disarmed . | . . Reprogrammed . | . . Reused . | . . Traps Extracted . | . . Installed . | . . Triggered . | . . Machines | -11 -10 ---------- Run | Yrd Mat Machines Disabled 2 | . 2 Max in Single Turn 2 | . 2 Machines Repaired . | . . Machines Dismantled . | . . Machines Sabotaged . | . . Overloaded Fab Kills . | . . Hacking | -11 -10 --------- Run | Yrd Mat Machines Accessed 1 | . 1 Terminals . | . . Fabricators . | . . Repair Stations 1 | . 1 Recycling Units . | . . Scanalyzers . | . . Garrison Access . | . . Total Hacks 3 | . 3 Successful 1 | . 1 Failed 2 | . 2 Catastrophic . | . . Database Lockouts . | . . Manual . | . . Terminals . | . . Fabricators . | . . Repair Stations 3 | . 3 Recycling Units . | . . Scanalyzers . | . . Garrison Access . | . . Terminal Hacks . | . . Fabricator Hacks . | . . Repair Station Hacks 1 | . 1 Refit 1 | . 1 Recycling Unit Hacks . | . . Scanalyzer . | . . Garrison Access Hacks . | . . Unauthorized Hacks . | . . Terminals . | . . Fabricators . | . . Repair Stations . | . . Recycling Units . | . . Scanalyzers . | . . Garrison Access . | . . Data Cores Recovered . | . . Used . | . . Hacking Detections 1 | . 1 Full Trace Events 1 | . 1 Feedback Events . | . . Feedback Blocked . | . . Robot Schematics Acquired . | . . Robots Built . | . . Authchips . | . . Time . | . . Total Robot Build Rating . | . . Part Schematics Acquired . | . . Parts Built . | . . Authchips . | . . Time . | . . Total Part Build Rating . | . . Part Studies Acquired . | . . Parts Repaired . | . . Time . | . . Parts Recycled . | . . Recycled Matter . | . . Retrieved Matter . | . . Retrieved Components . | . . Parts Scanalyzed . | . . Part Schematics Acquired . | . . Parts Damaged . | . . Bothacking | -11 -10 ------------ Run | Yrd Mat Used RIF Installer . | . . Robots Hacked . | . . Non-combat . | . . Combat . | . . Robot Hacks Applied . | . . Relay Couplers Released . | . . Fabnet Peak Effective % . | . . Robots Rewired . | . . Allies Hacked . | . . Hacks Repelled . | . . Allies | -11 -10 -------- Run | Yrd Mat Total Allies . | . . Largest Group . | . . Highest-Rated Group . | . . Highest-Rated Ally . | . . Total Orders . | . . Ally Attacks . | . . Total Damage . | . . Kills . | . . Allies Corrupted . | . . Allies Melted . | . . Intel | -11 -10 ------- Run | Yrd Mat Active Infowar (turns) . | . . Robot Analysis Total . | . . Derelict Logs Recovered . | . . Drone Launches . | . . Drone Recoveries . | . . Exploration | -11 -10 ------------- Run | Yrd Mat Turns Passed 601 | 152 449 Spaces Moved 335 | 109 226 Core 31 | 30 1 Treads 258 | 79 179 Legs . | . . Wheels . | . . Hover 46 | . 46 Flight . | . . Fastest Speed 50 | 50 100 Average Speed 143 | 129 150 Slowest Speed 160 | 160 160 Overloaded Moves . | . . Propulsion Burnouts . | . . Robots Hopped . | . . Potential Cave-ins . | . . Cave-ins Triggered . | . . Exploration Rate (%) 22 | 5 40 Regions Visited 1 Branch Regions . Pre-discovered Areas . | . . Known Exits Taken . | . . Unknown Exits Taken 1 | 1 . Scrap Searched . | . . Spaces Dug . | . . Terrain Destroyed 48 | . 48 Melee . | . . Projectile . | . . AOE 48 | . 48 Terrain Rammed . | . . Walls Destroyed . | . . Machines Disabled . | . . Actions | -11 -10 --------- Run | Yrd Mat Total 395 | 120 275 Wait 2 | . 2 Move 334 | 108 226 Hop . | . . Pick Up 12 | 6 6 Fast Attach . | . . Attach 7 | 6 1 Detach . | . . Swap 3 | . 3 Drop 3 | . 3 Fire 34 | . 34 Melee . | . . Ram . | . . Kick . | . . Crush . | . . Escape Stasis . | . . Rewire . | . . Trap . | . . Miscellaneous . | . . Route ------- -11/Scrapyard -10/Materials History --------- Turn | Location | Event 7 | -11/Scrapyard | Discovered new exit (range 14) 153 | -11/Scrapyard | Entered Materials 306 | -10/Materials | Build established: Mutant 505 | -10/Materials | Core integrity fell below 50% 601 | -10/Materials | Core integrity fell below 20% 602 | -10/Materials | Destroyed by G-47 Trooper with Particle Gun Last Messages --------------- 00547_ U-05 Engineer lays Concrete. 00559_ Visual Processing Unit fried. 00559_ W-16 Scout destroyed. 00565_ K-01 Serf cleans the Terminal. 00566_ W-16 Scout sends out distress signal. 00569_ K-01 Serf collects debris. 00579_ T-07 Excavator destroyed. 00580_ Acquired 20 matter. 00582_ EM Pulse Gun destroyed. 00582_ Imp. Hover Unit destroyed. 00585_ K-01 Serf collects debris. 00586_ Backup Plating I destroyed. [Achievement: There's More Where That Came From] 00594_ Assault Rifle destroyed. 00594_ Lgt. Nuclear Core destroyed. 00596_ G-34 Mercenary destroyed. 00597_ Acquired 9 matter. 00598_ Imp. Hover Unit destroyed. 00600_ K-01 Serf collects debris. 00602_ EM Pulse Gun destroyed. Map ----- +----------------------------------------------------+ | ?????????????????????????????????????????????????? | | ?????????????????????????????????????????????????? | | ?????????????????????????????#######?????????????? | | ????????????????????????????## #?????????????? | | ????????????????????????????? #?????????????? | | ????????????????????????????? #?????????????? | | ?????????????????????????????? #?????????????? | | ?????????????????????????????? #?????????????? | | ??????????????????????????????# #??????????????? | | ????????#######################=% #??????????????? | | ???????? = !%#??????????????? | | ???????? !=#????########??? | | ????????! #????#==[[//#??? | | ??????????? """ #????# [[//#??? | | ??????????? """ #????# #??? | | ??????? """ ####### ##????# ##??? | | ?????? ! """ #????# #????# == #???? | | ?????? ||| #????# ###### #???? | | ????? ||| #????# " #???? | | ?????? || #????# ###### #???? | | ?????? ############# #????# #????# #???? | | ???????????????????# #????#######???### ##???? | | ???????????????????# #??????????????? # ###### | | ???????????????????# #????????????????+ # | | ???????????????????# !##########???????# # | | ???????????????????# =|g%@ #???????# # """ | | ???????????????????# g!#* ######### # """ | | ???????????????????# #= # ## # """ | | ???????????????????# #g # """ ## + | | ?????????????????? #g # """ ## # | | ????????????????? #kg # """ ## ###### | | ???????????????? + # # #???? | | ??????????????? """" # # """ # #???? | | ??????????????# """" # # """ + T #???? | | ??????????????" """" ########## """ # #???? | | ?????????????"T ???? * #????????# # #???? | | ?????????????"?????? % #????????# """ ## ###### | | ????????????????????" #????????# """ ## # "T" | | ????????????????????" !?????????# """ ## + | | ????????????????????? ?????????# ## *%# """ | | ????????????????????? ?????????######### =# """ | | ?????????????????????????????????# # #* """ | | ?????????????????????????????????# """ # # | | ?????????????????????????????????# """ + ###### | | ?????????????????????????????????# """ # ###### | | ?????????????????????????????????# # # # | | ?????????????????????????????????# # # "" " | | ???????????????????????????????########## + "T " | | ???????????????????????????????# # # "" " | | ???????????????????????????????# """ # # | +----------------------------------------------------+ Best States ------------- Heat Dissipation 25 Energy Generation 14 Energy Capacity 250 Matter Stores 300 Matter Capacity 300 Sight Range 16 Terrain Scan Density 10 Armor Coverage 80 Evasion (%) 50 Recoil Reduction 2 Item Schematics ----------------- None Robot Schematics ------------------ None Fabricated ------------ Nothing Repaired ---------- Nothing Studied --------- None Alien Tech Used ----------------- None Achievements -------------- DATA ERROR: Steam Global Achievement% Fitting Room Organ Harvest There's More Where That Came From Challenges ------------ None Game ------ Seed BiomechanicalCloakingSource Manual? 0 Play Time 00:09:38 Cumulative 24.4 hours Start 2025.11.27 @ 23:38:52 End 2025.11.27 @ 23:49:05 Sessions 1 Manual Loads 0 Difficulty Rogue Special Mode None Game No. 45 Rogue 45 Adventurer 0 Explorer 0 Win Type - Total 0 Types 0/0/0/0/0/0/0/0/0/0 Lore% 10 Gallery% 24 Achievement% 12 Wizard Run 0 Options --------- Layout 1 ASCII 0 Keyboard 0 Movement Numpad Keybinds 0 Fullscreen 1 Font 32/SmallcapsGlow Map View 50x40 Zoom Use 0% Tactical HUD 1 Map Filters NONE Filters NONE Steam 1 RUN: 628d2506-5b77-4b99-ad7f-30cb7683c4ae